fUST/lending_fUST_20250116
["ID","MTS","AMOUNT","RATE_DAILY","PERIOD"]
[349172179,1737007840316,-1326.55,0.00019178,2]
[349172181,1737007840325,-2171.87,0.00019178,2]
[349172183,1737007840335,-621.74,0.00019178,2]
[349172185,1737007840344,-738.46,0.00019178,2]
[349172187,1737007840354,-151.0,0.00019178,2]
[349172189,1737007840363,-151.0,0.00019178,2]
[349172191,1737007840373,-151.0,0.00019178,2]
[349172193,1737007840382,-1298.37,0.00019178,2]
[349172195,1737007840392,-222.506179,0.00019178,2]
[349172197,1737007840401,-500.0,0.00019178,2]
[349172199,1737007840411,-637.01,0.00019178,2]
[349172201,1737007840421,-2374.85,0.00019178,2]
[349172203,1737007840431,-306.14763493,0.00019195,2]
[349172205,1737007840440,-153.0,0.000192,2]
[349172207,1737007840450,-153.0,0.000192,2]
[349172209,1737007840459,-154.00414,0.000192,2]
[349172211,1737007840469,-153.0,0.000192,2]
[349172213,1737007840480,-215.0156227,0.000192,2]
[349172233,1737007840657,-153.0,0.000192,2]
[349172236,1737007840669,-215.0156227,0.000192,2]
[349172238,1737007840678,-154.00414,0.000192,2]
[349172240,1737007840687,-153.0,0.000192,2]
[349172242,1737007840697,-154.00414,0.000192,2]
[349172244,1737007840706,-154.00414,0.000192,2]
[349172246,1737007840715,-154.00414,0.000192,2]
[349172248,1737007840724,-457.764571,0.000192,2]
[349172250,1737007840735,-209.3396962,0.000192,2]
[349172252,1737007840744,-3000.0,0.00019215,2]
[349172253,1737007840753,-245.37653418,0.00019215,2]
[349172255,1737007840763,-250.0,0.0001925,2]
[349172257,1737007840772,-152.684,0.00019295,2]
[349172259,1737007840781,-272.614,0.00019295,2]
[349172261,1737007840791,-2068.0,0.00019295,2]
[349172263,1737007840801,-536.0,0.00019295,2]
[349172266,1737007840810,-306.14763493,0.00019313,2]
[349172268,1737007840821,-500.0,0.00019315,3]
[349172270,1737007840830,-500.0,0.00019315,3]
[349172272,1737007840839,-500.0,0.00019315,3]
[349172274,1737007840849,-500.0,0.00019315,3]
[349172276,1737007840858,-500.0,0.00019315,3]
[349172278,1737007840867,-500.0,0.00019315,3]
[349172280,1737007840879,-500.0,0.00019315,3]
[349172282,1737007840888,-500.0,0.00019315,3]
[349172284,1737007840898,-685.47,0.00019315,3]
[349172286,1737007840907,-500.0,0.00019315,3]
[349172288,1737007840916,-500.0,0.00019315,3]
[349172289,1737007840925,-500.0,0.00019315,3]
[349172291,1737007840935,-500.0,0.00019315,3]
[349172294,1737007840944,-233.51434327,0.00019315,3]
[349172296,1737007840956,-303.96969842,0.00019315,3]
[349172298,1737007840967,-500.0,0.00019315,3]
[349172300,1737007840977,-500.0,0.00019315,3]
[349172302,1737007840986,-500.0,0.00019315,3]
[349172304,1737007840995,-500.0,0.00019315,3]
[349172306,1737007841005,-500.0,0.00019315,3]
[349172308,1737007841014,-500.0,0.00019315,3]
[349172310,1737007841023,-500.0,0.00019315,3]
[349172312,1737007841032,-500.0,0.00019315,3]
[349172314,1737007841041,-500.0,0.00019315,3]
[349172316,1737007841052,-500.0,0.00019315,3]
[349172318,1737007841062,-554.22,0.00019315,3]
[349172320,1737007841071,-860.16,0.00019315,3]
[349172322,1737007841080,-500.0,0.00019315,3]
[349172324,1737007841089,-621.39,0.00019315,3]
[349172326,1737007841098,-1117.03,0.00019315,3]
[349172328,1737007841108,-629.70465205,0.00019315,3]
[349172330,1737007841118,-500.0,0.00019315,3]
[349172332,1737007841127,-500.0,0.00019315,3]
[349172334,1737007841137,-1057.62,0.00019315,3]
[349172336,1737007841146,-500.0,0.00019315,3]
[349172338,1737007841155,-622.53,0.00019315,3]
[349172340,1737007841164,-589.21,0.00019315,3]
[349172342,1737007841174,-530.59968162,0.00019315,3]
[349172344,1737007841183,-1279.31,0.00019315,3]
[349172346,1737007841193,-500.0,0.00019315,3]
[349172348,1737007841202,-500.0,0.00019315,3]
[349172350,1737007841211,-500.0,0.00019315,3]
[349172352,1737007841220,-602.31,0.00019315,3]
[349172355,1737007841231,-650.18,0.00019315,3]
[349172357,1737007841240,-211.5784816,0.00019315,3]
[349172359,1737007841249,-500.0,0.00019315,3]
[349172361,1737007841259,-500.0,0.00019315,3]
[349172363,1737007841268,-500.0,0.00019315,3]
[349172365,1737007841277,-500.0,0.00019315,3]
[349172367,1737007841287,-500.0,0.00019315,3]
[349172369,1737007841296,-185.73069692,0.00019315,3]
[349172371,1737007841305,-521.68,0.00019315,3]
[349172373,1737007841314,-344.5330619,0.00019315,3]
[349172375,1737007841328,-155.4669381,0.00019315,3]
[349172377,1737007841337,-341.2830639,0.00019315,3]
[349172531,1737007842871,-300.0,0.00019178,2]
[349173267,1737008260399,5920.10681002,0.00025,120]
[349173269,1737008326968,162.354249,0.00013973,2]
[349173349,1737009032085,-300.0,0.00017714,2]
[349173351,1737009032094,-23.73357975,0.00017714,2]
[349173358,1737009032229,-274.26642025,0.00017714,2]
[349173359,1737009032238,-157.0,0.00017715,2]
[349173360,1737009032250,-157.0,0.00017715,2]
[349173361,1737009032266,-157.0,0.00017715,2]
[349173362,1737009032277,-157.0,0.00017715,2]
[349173363,1737009032289,-157.0,0.00017715,2]
[349173364,1737009032299,-157.0,0.00017715,2]
[349173365,1737009032308,-157.0,0.00017715,2]
[349173366,1737009032317,-157.0,0.00017715,2]
[349173367,1737009032327,-157.0,0.00017715,2]
[349173368,1737009032339,-157.0,0.00017715,2]
[349173369,1737009032350,-157.0,0.00017715,2]
[349173370,1737009032362,-250.93,0.00017715,2]
[349173371,1737009032371,-157.0,0.00017715,2]
[349173372,1737009032380,-157.0,0.00017715,2]
[349173373,1737009032389,-157.0,0.00017715,2]
[349173374,1737009032399,-167.96,0.00017715,2]
[349173375,1737009032407,-17693.49867287,0.00018,2]
[349173376,1737009032417,-178.01,0.0001814,2]
[349173377,1737009032427,-472.664,0.0001834,2]
[349173378,1737009032579,-158.98,0.00018805,2]
[349173379,1737009032589,-2219.00916381,0.00019,2]
[349173398,1737009038067,-6059.20240402,0.00019,2]
[349173399,1737009038077,-281.3484726,0.00019019,2]
[349173400,1737009038087,-589.85795749,0.00019111,2]
[349173401,1737009038097,-195.5935407,0.00019119,2]
[349173402,1737009038107,-281.34847257,0.00019145,2]
[349173403,1737009038117,-9384.09253045,0.0001917,2]
[349173404,1737009038130,-13165.75592535,0.0001917,2]
[349173405,1737009038140,-500.0,0.00019173,2]
[349173406,1737009038149,-320.10605672,0.00019177,2]
[349173407,1737009038159,-508.72246173,0.00019177,2]
[349173408,1737009038169,-500.0,0.00019177,2]
[349173409,1737009038178,-500.39592519,0.00019177,2]
[349173410,1737009038188,-500.0,0.00019177,2]
[349173411,1737009038197,-252.86237664,0.00019177,2]
[349173412,1737009038207,-500.0,0.00019177,2]
[349173413,1737009038216,-382.70484066,0.00019177,2]
[349173414,1737009038227,-470.812927,0.00019177,2]
[349173415,1737009038236,-293.53982919,0.00019177,2]
[349173416,1737009038247,-614.19631175,0.00019177,2]
[349173417,1737009038260,-500.0,0.00019177,2]
[349173418,1737009038270,-500.00000001,0.00019177,2]
[349173419,1737009038280,-301.60689671,0.00019177,2]
[349173420,1737009038292,-500.0,0.00019177,2]
[349173421,1737009038302,-171.646216,0.00019178,2]
[349173422,1737009038311,-500.0,0.00019178,2]
[349173423,1737009038321,-500.0,0.00019178,2]
[349173424,1737009038333,-569.61,0.00019178,2]
[349173425,1737009038343,-500.0,0.00019178,2]
[349173426,1737009038353,-167.50047189,0.00019178,2]
[349173427,1737009038365,-332.49952811,0.00019178,2]
[349173428,1737009038375,-500.0,0.00019178,2]
[349173429,1737009038385,-500.0,0.00019178,2]
[349173430,1737009038395,-500.0,0.00019178,2]
[349173431,1737009038405,-500.0,0.00019178,2]
[349173432,1737009038414,-500.0,0.00019178,2]
[349173433,1737009038424,-500.0,0.00019178,2]
[349173434,1737009038434,-500.0,0.00019178,2]
[349173435,1737009038443,-500.0,0.00019178,2]
[349173436,1737009038453,-213.02701781,0.00019178,2]
[349173447,1737009040123,-286.97298219,0.00019178,2]
[349173448,1737009040133,-500.0,0.00019178,2]
[349173449,1737009040143,-500.0,0.00019178,2]
[349173450,1737009040152,-483.04669192,0.00019178,2]
[349173451,1737009040162,-788.48,0.00019178,2]
[349173452,1737009040171,-500.0,0.00019178,2]
[349173453,1737009040182,-529.95,0.00019178,2]
[349173454,1737009040191,-508.04,0.00019178,2]
[349173455,1737009040201,-1023.95,0.00019178,2]
[349173456,1737009040210,-500.0,0.00019178,2]
[349173457,1737009040220,-500.0,0.00019178,2]
[349173458,1737009040229,-794.33,0.00019178,2]
[349173459,1737009040239,-110.77095589,0.00019178,2]
[349173460,1737009040258,-401.76904411,0.00019178,2]
[349173461,1737009040268,-500.0,0.00019178,2]
[349173462,1737009040277,-500.0,0.00019178,2]
[349173463,1737009040287,-631.01,0.00019178,2]
[349173464,1737009040300,-540.11,0.00019178,2]
[349173465,1737009040310,-500.0,0.00019178,2]
[349173466,1737009040320,-969.49,0.00019178,2]
[349173467,1737009040331,-1172.7,0.00019178,2]
[349173468,1737009040340,-552.12,0.00019178,2]
[349173469,1737009040349,-500.0,0.00019178,2]
[349173470,1737009040359,-570.65,0.00019178,2]
[349173471,1737009040368,-500.0,0.00019178,7]
[349173472,1737009040377,-500.0,0.00019178,2]
[349173473,1737009040387,-500.0,0.00019178,2]
[349173474,1737009040396,-500.0,0.00019178,2]
[349173475,1737009040404,-500.0,0.00019178,2]
[349173476,1737009040414,-500.0,0.00019178,2]
[349173477,1737009040424,-500.0,0.00019178,2]
[349173478,1737009040433,-595.99,0.00019178,2]
[349173479,1737009040442,-500.0,0.00019178,2]
[349173480,1737009040452,-721.96,0.00019178,2]
[349173481,1737009040462,-500.0,0.00019178,2]
[349173482,1737009040471,-500.0,0.00019178,2]
[349173483,1737009040480,-500.0,0.00019178,2]
[349173484,1737009040490,-500.0,0.00019178,2]
[349173485,1737009040500,-1060.52,0.00019178,2]
[349173486,1737009040509,-500.0,0.00019178,2]
[349173487,1737009040518,-579.22,0.00019178,2]
[349173488,1737009040527,-693.94,0.00019178,2]
[349173489,1737009040537,-500.0,0.00019178,2]
[349173490,1737009040547,-500.0,0.00019178,2]
[349173491,1737009040556,-500.0,0.00019178,2]
[349173492,1737009040567,-500.0,0.00019178,2]
[349173493,1737009040576,-500.0,0.00019178,2]
[349173494,1737009040585,-500.0,0.00019178,2]
[349173495,1737009040594,-390.85512548,0.00019178,2]
[349173496,1737009040603,-500.0,0.00019178,2]
[349173497,1737009040613,-500.0,0.00019178,2]
[349173498,1737009040622,-500.0,0.00019178,2]
[349173499,1737009040632,-949.75,0.00019178,2]
[349173500,1737009040641,-500.0,0.00019178,2]
[349173501,1737009040651,-663.67,0.00019178,2]
[349173502,1737009040660,-500.0,0.00019178,2]
[349173503,1737009040669,-500.0,0.00019178,2]
[349173504,1737009040678,-500.0,0.00019178,2]
[349173505,1737009040688,-500.0,0.00019178,2]
[349173506,1737009040697,-500.0,0.00019178,2]
[349173507,1737009040706,-1833.03,0.00019178,2]
[349173508,1737009040715,-151.0,0.00019178,2]
[349173509,1737009040724,-151.0,0.00019178,2]
[349173510,1737009040734,-151.0,0.00019178,2]
[349173511,1737009040743,-500.0,0.00019178,2]
[349173512,1737009040752,-959.31,0.00019178,2]
[349173513,1737009040762,-4399.07,0.00019178,2]
[349173514,1737009040771,-500.0,0.00019178,2]
[349173515,1737009040781,-500.0,0.00019178,2]
[349173516,1737009040792,-500.0,0.00019178,2]
[349173517,1737009040803,-500.0,0.00019178,2]
[349173518,1737009040812,-500.0,0.00019178,2]
[349173519,1737009040822,-2753.83583041,0.00019178,2]
[349173531,1737009042921,-470.812927,0.00019178,2]
[349173540,1737009042999,-13465.69797665,0.00019178,2]
[349173628,1737009046455,-1793.5398292,0.00019178,2]
[349173634,1737009081273,265.60723112,0.00025,120]
[349173635,1737009469692,162.66688,0.00013973,2]
[349173667,1737010222133,10000.0,0.00025,120]
[349173793,1737010238086,-211.01135448,0.000179,2]
[349173795,1737010238096,-649.7986598,0.00017997,2]
[349173797,1737010238108,-1099.13135451,0.00017997,2]
[349174002,1737010240277,-3431.11742922,0.00017997,2]
[349174015,1737010240393,-2169.64031312,0.00017997,2]
[349174241,1737010243188,-16725.06742891,0.00017997,2]
[349174243,1737010243200,-907.93448861,0.00017997,2]
[349174254,1737010243294,-8435.0923457,0.00017997,2]
[349174256,1737010243307,-9417.21798013,0.00017997,2]
[349174258,1737010243317,-300.0,0.00017999,2]
[349174261,1737010243327,-3017.15934137,0.00018,2]
[349174534,1737010246189,-5000.12856121,0.00018,2]
[349174545,1737010246429,5000.0,0.00025,120]
[349175374,1737010286625,4786.01114,0.00025,120]
[349175375,1737010616258,162.948248,0.00013973,2]
[349175377,1737011069224,1134.31255908,0.00014,2]
[349175378,1737011195650,1000.0,0.00025,120]
[349175384,1737011411294,4946.4850929,0.00025,120]
[349175422,1737011432712,-183.8183458,0.0001698,2]
[349175423,1737011432723,-1092.35874724,0.00017211,2]
[349175424,1737011432735,-4.42984836,0.00017211,2]
[349175425,1737011432745,-300.0,0.00017315,2]
[349175426,1737011432755,-24900.0,0.00017316,2]
[349175427,1737011432764,-152.0,0.00017687,2]
[349175428,1737011432774,-162.159263,0.00017791,2]
[349175429,1737011432783,-162.159263,0.00017797,2]
[349175430,1737011432793,-162.159263,0.00017804,2]
[349175431,1737011432803,-162.159263,0.0001781,2]
[349175432,1737011432813,-162.159263,0.00017817,2]
[349175433,1737011432823,-162.159263,0.00017823,2]
[349175434,1737011432833,-162.159263,0.00017829,2]
[349175435,1737011432843,-188.4247327,0.00017833,2]
[349175436,1737011432853,-162.159263,0.00017836,2]
[349175437,1737011432863,-162.159263,0.00017842,2]
[349175438,1737011432873,-162.159263,0.00017848,2]
[349175439,1737011432882,-162.159263,0.00017855,2]
[349175440,1737011432892,-162.159263,0.00017861,2]
[349175441,1737011432901,-162.159263,0.00017867,2]
[349175442,1737011432914,-162.159263,0.00017874,2]
[349175443,1737011432924,-162.159263,0.0001788,2]
[349175444,1737011432933,-387.54144056,0.000179,2]
[349175445,1737011432944,-28505.63771266,0.00018,2]
[349175446,1737011432955,-462.39116754,0.00018,2]
[349175447,1737011432977,-192.0,0.00018085,2]
[349175448,1737011432988,-387.54144052,0.00018186,2]
[349175449,1737011432999,-476.012,0.0001834,2]
[349175450,1737011433008,-387.54144052,0.00018471,2]
[349175451,1737011433019,-151.0,0.00018668,2]
[349175452,1737011433030,-151.0,0.00018668,2]
[349175453,1737011433042,-151.0,0.00018668,2]
[349175454,1737011433053,-151.0,0.00018668,2]
[349175455,1737011433064,-151.0,0.00018668,2]
[349175456,1737011433075,-151.0,0.00018668,2]
[349175457,1737011433090,-151.0,0.00018668,2]
[349175458,1737011433100,-151.0,0.00018668,2]
[349175459,1737011433111,-151.0,0.00018668,2]
[349175460,1737011433121,-387.54144052,0.00018757,2]
[349175461,1737011433132,-395.0,0.00018797,2]
[349175462,1737011433143,-158.99,0.00018821,2]
[349175463,1737011433154,-420.0,0.00018906,2]
[349175464,1737011433168,-1000.0,0.00019,19]
[349175465,1737011433178,-1000.0,0.00019,2]
[349175466,1737011433188,-4756.31111026,0.00019,2]
[349175467,1737011433198,-387.54144052,0.00019043,2]
[349175468,1737011433208,-252.0,0.0001907,2]
[349175469,1737011433218,-4756.31111007,0.00019107,2]
[349175470,1737011433228,-500.0,0.00019177,2]
[349175471,1737011433239,-205.94176578,0.00019177,2]
[349175472,1737011433249,-479.39242159,0.00019177,2]
[349175473,1737011433259,-201.21675574,0.00019177,2]
[349175474,1737011433269,-500.0,0.00019177,2]
[349175475,1737011433279,-381.17190388,0.00019177,2]
[349175476,1737011433289,-500.0,0.00019177,2]
[349175477,1737011433299,-197.95228736,0.00019178,2]
[349175478,1737011433309,-500.0,0.00019178,2]
[349175479,1737011433319,-173.61713454,0.00019178,2]
[349175480,1737011433330,-500.0,0.00019178,2]
[349175481,1737011433340,-500.0,0.00019178,2]
[349175482,1737011433350,-500.0,0.00019178,2]
[349175483,1737011433359,-500.0,0.00019178,2]
[349175484,1737011433370,-500.0,0.00019178,2]
[349175485,1737011433379,-628.35,0.00019178,2]
[349175486,1737011433389,-500.0,0.00019178,2]
[349175487,1737011433399,-500.0,0.00019178,2]
[349175488,1737011433410,-500.0,0.00019178,2]
[349175489,1737011433420,-500.0,0.00019178,2]
[349175490,1737011433431,-500.0,0.00019178,2]
[349175491,1737011433441,-500.0,0.00019178,2]
[349175492,1737011433452,-500.0,0.00019178,2]
[349175493,1737011433462,-500.0,0.00019178,2]
[349175494,1737011433473,-500.0,0.00019178,2]
[349175495,1737011433483,-500.0,0.00019178,2]
[349175496,1737011433493,-500.0,0.00019178,2]
[349175497,1737011433503,-500.0,0.00019178,2]
[349175498,1737011433514,-500.0,0.00019178,2]
[349175499,1737011433524,-500.0,0.00019178,2]
[349175500,1737011433534,-755.63,0.00019178,2]
[349175501,1737011433544,-500.0,0.00019178,2]
[349175502,1737011433554,-545.87,0.00019178,2]
[349175503,1737011433564,-500.0,0.00019178,2]
[349175504,1737011433575,-1022.95,0.00019178,2]
[349175505,1737011433586,-500.0,0.00019178,2]
[349175506,1737011433596,-500.0,0.00019178,2]
[349175507,1737011433606,-761.24,0.00019178,2]
[349175508,1737011433616,-500.0,0.00019178,2]
[349175509,1737011433835,-517.61,0.00019178,2]
[349175510,1737011433846,-604.71,0.00019178,2]
[349175511,1737011433856,-966.68,0.00019178,2]
[349175512,1737011433866,-529.11,0.00019178,2]
[349175513,1737011433876,-1186.33,0.00019178,2]
[349175514,1737011433886,-546.88,0.00019178,2]
[349175515,1737011433897,-500.0,0.00019178,2]
[349175516,1737011433908,-500.0,0.00019178,2]
[349175517,1737011433918,-527.51663256,0.00019178,2]
[349175518,1737011433929,-500.0,0.00019178,2]
[349175519,1737011433940,-500.0,0.00019178,2]
[349175520,1737011433950,-500.0,0.00019178,2]
[349175521,1737011433959,-500.0,0.00019178,2]
[349175522,1737011433970,-500.0,0.00019178,2]
[349175523,1737011433980,-571.16,0.00019178,2]
[349175524,1737011433989,-691.88,0.00019178,2]
[349175525,1737011433999,-500.0,0.00019178,2]
[349175526,1737011434009,-500.0,0.00019178,2]
[349175527,1737011434020,-500.0,0.00019178,2]
[349175528,1737011434030,-500.0,0.00019178,2]
[349175529,1737011434039,-500.0,0.00019178,2]
[349175530,1737011434049,-1078.83,0.00019178,2]
[349175531,1737011434059,-665.03,0.00019178,2]
[349175532,1737011434069,-500.0,0.00019178,2]
[349175533,1737011434081,-500.0,0.00019178,2]
[349175534,1737011434092,-500.0,0.00019178,2]
[349175535,1737011434102,-500.0,0.00019178,2]
[349175536,1737011434111,-500.0,0.00019178,2]
[349175537,1737011434122,-500.0,0.00019178,2]
[349175538,1737011434132,-500.0,0.00019178,2]
[349175539,1737011434142,-507.87,0.00019178,2]
[349175540,1737011434152,-500.0,0.00019178,2]
[349175541,1737011434164,-500.0,0.00019178,2]
[349175542,1737011434175,-500.0,0.00019178,2]
[349175543,1737011434185,-910.18,0.00019178,2]
[349175544,1737011434195,-12101.44,0.00019178,2]
[349175545,1737011434204,-636.01,0.00019178,2]
[349175546,1737011434214,-238.34794175,0.00019178,2]
[349175547,1737011434224,-500.0,0.00019178,2]
[349175548,1737011434233,-4335.54,0.00019178,2]
[349175549,1737011434243,-260.075084,0.00019178,2]
[349175550,1737011434253,-707.69,0.00019178,2]
[349175551,1737011434263,-500.0,0.00019178,2]
[349175552,1737011434273,-500.0,0.00019178,2]
[349175553,1737011434283,-500.0,0.00019178,2]
[349175554,1737011434293,-500.0,0.00019178,2]
[349175555,1737011434303,-500.0,0.00019178,2]
[349175556,1737011434312,-500.0,0.00019178,2]
[349175557,1737011434322,-1798.32,0.00019178,2]
[349175558,1737011434332,-500.0,0.00019178,2]
[349175559,1737011434341,-500.0,0.00019178,2]
[349175560,1737011434350,-500.0,0.00019178,2]
[349175561,1737011434360,-184.262862,0.00019178,2]
[349175562,1737011434370,-184.262862,0.00019178,2]
[349175563,1737011434380,-184.262862,0.00019178,2]
[349175564,1737011434390,-184.262862,0.00019178,2]
[349175565,1737011434401,-184.262862,0.00019178,2]
[349175566,1737011434412,-184.262862,0.00019178,2]
[349175567,1737011434422,-184.262862,0.00019178,2]
[349175568,1737011434433,-184.262862,0.00019178,2]
[349175569,1737011434444,-184.262862,0.00019178,2]
[349175570,1737011434454,-184.262862,0.00019178,2]
[349175571,1737011434464,-184.262862,0.00019178,2]
[349175572,1737011434474,-184.262862,0.00019178,2]
[349175573,1737011434484,-184.262862,0.00019178,2]
[349175574,1737011434494,-184.262862,0.00019178,2]
[349175575,1737011434504,-500.0,0.00019178,2]
[349175576,1737011434514,-934.83,0.00019178,2]
[349175577,1737011434525,-516.15,0.00019178,2]
[349175578,1737011434535,-500.0,0.00019178,2]
[349175579,1737011434546,-24617.3,0.00019178,2]
[349175580,1737011434556,-740.27,0.00019178,2]
[349175581,1737011434567,-528.7,0.00019178,2]
[349175582,1737011434578,-500.0,0.00019178,2]
[349175583,1737011434587,-500.0,0.00019178,2]
[349175584,1737011434598,-500.0,0.00019178,2]
[349175585,1737011434608,-2994.9,0.00019178,2]
[349175586,1737011434618,-1398.64,0.00019178,2]
[349175587,1737011434629,-500.0,0.00019178,2]
[349175588,1737011434639,-611.5,0.00019178,2]
[349175589,1737011434649,-763.37,0.00019178,2]
[349175590,1737011434659,-500.0,0.00019178,2]
[349175591,1737011434670,-1812.81,0.00019178,2]
[349175592,1737011434679,-8855.21,0.00019178,2]
[349175593,1737011434689,-500.0,0.00019178,2]
[349175594,1737011434699,-500.0,0.00019178,2]
[349175595,1737011434710,-1029.95,0.00019178,2]
[349175596,1737011434720,-1465.21,0.00019178,2]
[349175597,1737011434729,-310.33365988,0.00019178,7]
[349175598,1737011434739,-595.22,0.00019178,2]
[349175599,1737011434750,-500.0,0.00019178,2]
[349175600,1737011434760,-852.26,0.00019178,2]
[349175601,1737011434770,-500.0,0.00019178,2]
[349175602,1737011434780,-503.68,0.00019178,2]
[349175603,1737011434790,-4262.96,0.00019178,2]
[349175604,1737011434800,-853.82,0.00019178,2]
[349175605,1737011434811,-500.0,0.00019178,2]
[349175606,1737011434820,-646.21,0.00019178,2]
[349175607,1737011434830,-500.0,0.00019178,2]
[349175608,1737011434839,-1021.24,0.00019178,2]
[349175609,1737011434848,-2610.1,0.00019178,2]
[349175610,1737011434858,-3097.42,0.00019178,2]
[349175611,1737011434868,-500.0,0.00019178,2]
[349175612,1737011434878,-500.0,0.00019178,2]
[349175613,1737011434888,-500.0,0.00019178,2]
[349175614,1737011434897,-18966.59,0.00019178,2]
[349175615,1737011434908,-1416.32,0.00019178,2]
[349175616,1737011434919,-795.67,0.00019178,2]
[349175617,1737011434928,-584.28263761,0.00019178,2]
[349175618,1737011434938,-500.0,0.00019178,2]
[349175619,1737011434948,-1232.67,0.00019178,2]
[349175620,1737011434957,-1118.9,0.00019178,2]
[349175621,1737011434967,-353.97066095,0.00019178,2]
[349175622,1737011434977,-3715.74,0.00019178,2]
[349175623,1737011434987,-500.0,0.00019178,2]
[349175624,1737011434997,-500.0,0.00019178,2]
[349175625,1737011435007,-500.0,0.00019178,2]
[349175626,1737011435017,-500.0,0.00019178,2]
[349175627,1737011435026,-1681.01,0.00019178,2]
[349175628,1737011435036,-500.0,0.00019178,2]
[349175629,1737011435046,-500.0,0.00019178,2]
[349175630,1737011435055,-39629.91,0.00019178,2]
[349175631,1737011435064,-500.0,0.00019178,2]
[349175632,1737011435074,-1613.26,0.00019178,2]
[349175633,1737011435085,-2102.21,0.00019178,2]
[349175634,1737011435105,-500.0,0.00019178,2]
[349175635,1737011435117,-1116.16,0.00019178,2]
[349175636,1737011435127,-2095.15,0.00019178,2]
[349175637,1737011435139,-500.0,0.00019178,2]
[349175638,1737011435149,-500.0,0.00019178,2]
[349175639,1737011435159,-7898.18,0.00019178,2]
[349175640,1737011435171,-500.0,0.00019178,2]
[349175641,1737011435181,-780.29,0.00019178,2]
[349175642,1737011435191,-2317.56,0.00019178,2]
[349175643,1737011435201,-1292.11,0.00019178,2]
[349175644,1737011435211,-500.0,0.00019178,2]
[349175645,1737011435221,-500.0,0.00019178,2]
[349175646,1737011435231,-516.73,0.00019178,2]
[349175647,1737011435242,-631.3,0.00019178,2]
[349175648,1737011435252,-500.0,0.00019178,2]
[349175649,1737011435262,-1300.49,0.00019178,2]
[349175650,1737011435273,-165.899343,0.00019178,2]
[349175651,1737011435283,-339.911839,0.00019178,2]
[349175652,1737011435293,-221.4061487,0.00019178,2]
[349175653,1737011435303,-251.367452,0.00019178,2]
[349175654,1737011435313,-466.1064641,0.00019228,2]
[349175655,1737011435323,-939.17940261,0.00019241,2]
[349175656,1737011435333,-2068.0,0.00019287,2]
[349175657,1737011435342,-536.0,0.00019287,2]
[349175658,1737011435354,-2310.0,0.00019287,2]
[349175659,1737011435364,-151.0,0.00019312,2]
[349175660,1737011435373,-4756.31111007,0.00019314,2]
[349175661,1737011435383,-211.1248277,0.00019314,2]
[349175662,1737011435393,-500.0,0.00019315,3]
[349175663,1737011435403,-500.0,0.00019315,3]
[349175664,1737011435414,-500.0,0.00019315,3]
[349175665,1737011435424,-500.0,0.00019315,3]
[349175666,1737011435434,-500.0,0.00019315,3]
[349175667,1737011435444,-500.0,0.00019315,3]
[349175668,1737011435453,-628.35,0.00019315,3]